bitfinex/quotes_BTCUSD_20250515
["timestamp","ask_amount","ask_price","bid_price","bid_amount"]
[1747349976565,1.29159106,103540.0,103530.0,0.002]
[1747349992901,1.54933377,103540.0,103530.0,0.002]
[1747349993116,1.71100468,103540.0,103530.0,0.002]
[1747349993307,1.73807485,103540.0,103530.0,0.002]
[1747349993524,1.64076545,103540.0,103530.0,0.002]
[1747349993704,1.61369528,103540.0,103530.0,0.002]
[1747349994122,1.61169528,103540.0,103530.0,0.002]
[1747349994501,1.62869528,103540.0,103530.0,0.002]
[1747349994852,0.24888041,103530.0,103520.0,0.0004922]
[1747349995058,0.66953163,103530.0,103520.0,0.0004922]
[1747349995735,0.49331987,103530.0,103520.0,0.0004922]
[1747349995939,0.46181987,103530.0,103520.0,0.0004922]
[1747349996143,0.83241987,103530.0,103520.0,0.0024922]
[1747349997516,0.83541987,103530.0,103520.0,0.0024922]
[1747349997725,0.86701987,103530.0,103520.0,0.0024922]
[1747349998705,1.02869078,103530.0,103520.0,0.0024922]
[1747350002908,0.83541987,103530.0,103520.0,0.0024922]
[1747350003117,0.83513987,103530.0,103520.0,0.0024922]
[1747350004002,0.83513987,103530.0,103520.0,0.0190922]
[1747350004646,0.02331787,103530.0,103520.0,0.22739158]
[1747350004866,0.91214825,103530.0,103520.0,0.23705145]
[1747350005078,0.9024895,103530.0,103520.0,0.23705145]
[1747350005505,0.9024895,103530.0,103520.0,0.24671123]
[1747350006180,0.55649859,103530.0,103520.0,0.25637082]
[1747350006392,0.7181695,103530.0,103520.0,0.25637082]
[1747350007431,0.9030495,103530.0,103520.0,0.26603032]
[1747350007645,0.9030495,103530.0,103520.0,0.25637082]
[1747350008086,0.53853884,103530.0,103520.0,0.26603032]
[1747350008327,0.57581609,103530.0,103520.0,0.27568972]
[1747350008970,0.56615753,103530.0,103520.0,0.26603032]
[1747350009619,0.55649869,103530.0,103520.0,0.24671123]
[1747350009839,0.7181696,103530.0,103520.0,0.25637091]
[1747350010293,0.7181696,103530.0,103520.0,0.2660305]
[1747350010734,0.55649869,103530.0,103520.0,0.27569]
[1747350012890,0.55649869,103530.0,103520.0,0.2660305]
[1747350013417,0.004,103530.0,103520.0,0.3633399]
[1747350013630,0.01365819,103530.0,103520.0,0.37299921]
[1747350014551,0.03297503,103530.0,103520.0,0.37299921]
[1747350014825,0.04263351,103530.0,103520.0,0.37299921]
[1747350015033,0.21396326,103530.0,103520.0,0.37299921]
[1747350015500,0.20430442,103530.0,103520.0,0.37299921]
[1747350015938,0.21396326,103530.0,103520.0,0.37299921]
[1747350019962,0.40714473,103530.0,103520.0,0.37299921]
[1747350020091,0.21396401,103530.0,103520.0,0.37299921]
[1747350021415,0.20430507,103530.0,103520.0,0.37299921]
[1747350022027,0.18498757,103530.0,103520.0,0.37299921]
[1747350022164,0.01365828,103530.0,103520.0,0.37299921]
[1747350022392,0.004,103530.0,103520.0,0.37299921]
[1747350022835,0.01365828,103530.0,103520.0,0.37299921]
[1747350023043,0.004,103530.0,103520.0,0.37299921]
[1747350024732,0.001,103530.0,103520.0,0.37299921]
[1747350025019,0.003,103530.0,103520.0,0.37299921]
[1747350025670,0.002,103530.0,103520.0,0.37099921]
[1747350025886,0.003,103530.0,103520.0,0.37499921]
[1747350026754,0.03197568,103530.0,103520.0,0.37499921]
[1747350026984,0.02231684,103530.0,103520.0,0.37499921]
[1747350027435,0.38682731,103530.0,103520.0,0.23905145]
[1747350027646,0.38682806,103530.0,103520.0,0.21701104]
[1747350027881,0.22515715,103530.0,103520.0,0.22667054]
[1747350028102,0.38682806,103530.0,103520.0,0.23632994]
[1747350029243,0.22515715,103530.0,103520.0,0.23632994]
[1747350029672,0.22515715,103530.0,103520.0,0.20735145]
[1747350029901,0.003,103530.0,103520.0,0.36583971]
[1747350030577,0.01265819,103530.0,103520.0,0.36583971]
[1747350031025,0.02231666,103530.0,103520.0,0.36583971]
[1747350031232,0.03197532,103530.0,103520.0,0.36583971]
[1747350032292,0.04163416,103530.0,103520.0,0.36583971]
[1747350032509,0.04163407,103530.0,103520.0,0.36583971]
[1747350033779,0.03197522,103530.0,103520.0,0.36583971]
[1747350033985,0.02231666,103530.0,103520.0,0.36583971]
[1747350034586,0.003,103530.0,103520.0,0.36583971]
[1747350035011,0.02231684,103530.0,103520.0,0.36583971]
[1747350035217,0.01265828,103530.0,103520.0,0.36583971]
[1747350035870,0.003,103530.0,103520.0,0.36583971]
[1747350036703,0.01265838,103530.0,103520.0,0.36583971]
[1747350037331,0.003,103530.0,103520.0,0.36583971]
[1747350037950,0.02231666,103530.0,103520.0,0.36583971]
[1747350039533,0.01265819,103530.0,103520.0,0.36583971]
[1747350039741,0.003,103530.0,103520.0,0.36583971]
[1747350041588,0.003,103530.0,103520.0,0.55079971]
[1747350047815,0.01265828,103530.0,103520.0,0.33363971]
[1747350048024,0.02231666,103530.0,103520.0,0.33363971]
[1747350048691,0.01265819,103530.0,103520.0,0.33363971]
[1747350050088,0.02231657,103530.0,103520.0,0.33363971]
[1747350050295,0.01265819,103530.0,103520.0,0.33363971]
[1747350050520,0.02231647,103530.0,103520.0,0.33363971]
[1747350050653,0.03197503,103530.0,103520.0,0.33363971]
[1747350050855,0.02231647,103530.0,103520.0,0.33363971]
[1747350051099,0.003,103530.0,103520.0,0.33363971]
[1747350051299,0.01265838,103530.0,103520.0,0.34863971]
[1747350051501,0.003,103530.0,103520.0,0.34863971]
[1747350052176,0.01265819,103530.0,103520.0,0.34863971]
[1747350052311,0.01265819,103530.0,103520.0,0.36513971]
[1747350052515,0.003,103530.0,103520.0,0.36513971]
[1747350058529,0.003,103530.0,103520.0,0.34863971]
[1747350059055,0.003,103530.0,103520.0,0.36393971]
[1747350059750,0.003,103530.0,103520.0,0.34863971]
[1747350060147,0.003,103530.0,103520.0,0.33363971]
[1747350060819,0.003,103530.0,103520.0,0.35013971]
[1747350062264,0.003,103530.0,103520.0,0.36563971]
[1747350074310,0.003,103530.0,103520.0,0.55007971]
[1747350075177,0.01265828,103530.0,103520.0,0.51807971]
[1747350075392,0.42808616,103530.0,103520.0,0.29500098]
[1747350075605,0.66455408,103530.0,103520.0,0.0044922]
[1747350075821,0.82622499,103530.0,103520.0,0.0044922]
[1747350077391,1.11716941,103530.0,103520.0,0.19769158]
[1747350078057,1.11716941,103530.0,103520.0,0.20735154]
[1747350078281,1.11716941,103530.0,103520.0,0.0044922]
[1747350079420,1.12692782,103530.0,103520.0,0.0044922]
[1747350080342,1.28859873,103530.0,103520.0,0.0044922]
[1747350080573,1.38590813,103530.0,103520.0,0.0044922]
[1747350080807,1.49775838,103530.0,103520.0,0.0044922]
[1747350081466,1.49575838,103530.0,103520.0,0.0044922]
[1747350081939,1.42544898,103530.0,103520.0,0.0044922]
[1747350082150,1.40990813,103530.0,103520.0,0.0004922]
[1747350082361,1.45144898,103530.0,103520.0,0.0004922]
[1747350083458,1.62106136,103530.0,103520.0,0.0004922]
[1747350084559,1.37458426,103530.0,103520.0,0.0004922]
[1747350084771,0.99164341,103530.0,103520.0,0.0004922]
[1747350084979,1.36356341,103530.0,103520.0,0.0004922]
[1747350085186,1.26625401,103530.0,103520.0,0.0004922]
[1747350085388,1.01977691,103530.0,103520.0,0.0004922]
[1747350085825,1.26625401,103530.0,103520.0,0.0004922]
[1747350086238,0.83181691,103530.0,103520.0,0.0004922]
[1747350086470,1.01973691,103530.0,103520.0,0.0004922]
[1747350087161,1.01969691,103530.0,103520.0,0.0004922]
[1747350087574,1.26617401,103530.0,103520.0,0.0004922]
[1747350091081,1.01003816,103530.0,103520.0,0.0004922]
[1747350091263,1.00979816,103530.0,103520.0,0.0004922]
[1747350093179,1.00979816,103530.0,103520.0,0.20335145]
[1747350094048,1.00013913,103530.0,103520.0,0.0004922]
[1747350096995,0.62853913,103530.0,103520.0,0.0004922]
[1747350097206,0.99965913,103530.0,103520.0,0.0004922]
[1747350100889,0.99965913,103530.0,103520.0,0.19369158]
[1747350101520,0.99965913,103530.0,103520.0,0.0004922]
[1747350109646,0.58718072,103530.0,103520.0,0.20335145]
[1747350109914,0.78307975,103530.0,103520.0,0.0004922]
[1747350110530,0.75607975,103530.0,103520.0,0.0004922]
[1747350110739,0.77107975,103530.0,103520.0,0.0014922]
[1747350110915,0.74407975,103530.0,103520.0,0.0014922]
[1747350111286,0.76207975,103530.0,103520.0,0.0014922]
[1747350113022,0.76207975,103530.0,103520.0,0.21401122]
[1747350113435,0.38265856,103530.0,103520.0,0.23333012]
[1747350113631,0.80043381,103530.0,103520.0,0.24993012]
[1747350113995,0.79077562,103530.0,103520.0,0.24027081]
[1747350114304,0.78111715,103530.0,103520.0,0.24027081]
[1747350115540,0.57583975,103530.0,103520.0,0.22095154]
[1747350115750,0.57583975,103530.0,103520.0,0.25637119]
[1747350116983,0.5854985,103530.0,103520.0,0.27569027]
[1747350117614,0.39231684,103530.0,103520.0,0.37299902]
[1747350117763,0.40197568,103530.0,103520.0,0.37299902]
[1747350118834,0.4019755,103530.0,103520.0,0.37299902]
[1747350119253,0.41163434,103530.0,103520.0,0.37299902]
[1747350119655,0.411635,103530.0,103520.0,0.37299902]
[1747350119865,0.40197606,103530.0,103520.0,0.37299902]
[1747350120063,0.40197597,103530.0,103520.0,0.37299902]
[1747350120304,0.41163481,103530.0,103520.0,0.37299902]
[1747350120683,0.40197597,103530.0,103520.0,0.37299902]
[1747350120923,0.40197559,103530.0,103520.0,0.37299902]
[1747350121133,0.39231684,103530.0,103520.0,0.37299902]
[1747350121771,0.40197559,103530.0,103520.0,0.37299902]
[1747350122085,0.39231684,103530.0,103520.0,0.37299902]
[1747350122291,0.4019755,103530.0,103520.0,0.37299902]
[1747350122493,0.41163425,103530.0,103520.0,0.37299902]
[1747350122701,0.42129309,103530.0,103520.0,0.37299902]
[1747350122905,0.61447447,103530.0,103520.0,0.35689902]
[1747350123101,0.5854985,103530.0,103520.0,0.0988016]
[1747350123341,0.5854985,103530.0,103520.0,0.20435154]
[1747350124090,0.57583966,103530.0,103520.0,0.20435154]
[1747350124304,0.57583966,103530.0,103520.0,0.21401141]
[1747350125559,0.38265866,103530.0,103520.0,0.26643059]
[1747350125772,0.033,103530.0,103520.0,0.3733993]
[1747350126023,0.033,103530.0,103520.0,0.53504844]
[1747350126243,0.033,103530.0,103520.0,0.69669758]
[1747350126674,0.39367358,103550.0,103540.0,0.25223524]
[1747350126892,0.01504659,103550.0,103540.0,0.25223524]
[1747350127111,0.37435971,103550.0,103540.0,0.25223524]
[1747350127325,0.3647031,103550.0,103540.0,0.25223524]
[1747350127565,0.3743598,103550.0,103540.0,0.25223524]
[1747350127779,0.3840166,103550.0,103540.0,0.34954464]
[1747350127998,0.05367358,103550.0,103540.0,0.34954464]
[1747350128220,0.25081698,103550.0,103540.0,0.33122946]
[1747350128466,0.425153,103550.0,103540.0,0.001]
[1747350129124,0.425153,103550.0,103540.0,0.19516206]
[1747350129335,0.26350386,103550.0,103540.0,0.19516206]
[1747350129540,0.26350386,103550.0,103540.0,0.20482016]
[1747350129747,0.23150386,103550.0,103540.0,0.2241357]
[1747350130168,0.23150386,103550.0,103540.0,0.21447807]
[1747350130593,0.22184697,103550.0,103540.0,0.002]
[1747350130817,0.49921482,103550.0,103540.0,0.002]
[1747350132134,0.03827143,103550.0,103540.0,0.22413524]
[1747350132344,0.01895831,103550.0,103540.0,0.25453524]
[1747350132594,0.02861473,103550.0,103540.0,0.25453524]
[1747350132810,0.05758502,103550.0,103540.0,0.25453524]
[1747350133040,0.26038549,103550.0,103540.0,0.25453524]
[1747350133269,0.06724209,103550.0,103540.0,0.25453524]
[1747350133710,0.26038549,103550.0,103540.0,0.25453524]
[1747350134147,0.26038549,103550.0,103540.0,0.24487779]
[1747350134384,0.26038624,103550.0,103540.0,0.25453542]
[1747350134911,0.25072963,103550.0,103540.0,0.25453542]
[1747350135156,0.25072963,103550.0,103540.0,0.26419296]
[1747350135332,0.04792906,103550.0,103540.0,0.27385041]
[1747350136167,0.00439056,103550.0,103540.0,0.61741594]
[1747350136292,0.00439056,103550.0,103540.0,0.37115981]
[1747350136957,0.01404698,103550.0,103540.0,0.37115981]
[1747350137174,0.01004698,103550.0,103540.0,0.37015981]
[1747350137412,0.01004698,103550.0,103540.0,0.36915981]
[1747350137612,0.01004698,103550.0,103540.0,0.37215981]
[1747350138500,0.01004689,103550.0,103540.0,0.37215981]
[1747350138874,0.0197035,103550.0,103540.0,0.37215981]
[1747350139084,0.0197035,103550.0,103540.0,0.37315981]
[1747350139085,0.0323602,103550.0,103540.0,0.37315981]
[1747350139281,0.52726624,103550.0,103540.0,0.31378737]
[1747350139475,0.06270954,103550.0,103540.0,0.33310255]
[1747350139901,0.06270945,103550.0,103540.0,0.33310255]
[1747350140280,0.49829567,103550.0,103540.0,0.004]
[1747350140484,0.50795265,103550.0,103540.0,0.004]
[1747350140765,0.69663265,103550.0,103540.0,0.004]
[1747350141003,1.03663265,103550.0,103540.0,0.004]
[1747350141874,0.79037652,103550.0,103540.0,0.004]
[1747350142093,1.03663265,103550.0,103540.0,0.004]
[1747350142545,1.19420134,103550.0,103540.0,0.004]
[1747350142789,1.1484829,103550.0,103540.0,0.004]
[1747350143009,5.9950469,103550.0,103540.0,0.004]
[1747350143428,6.00496282,103550.0,103540.0,0.001]
[1747350143666,6.00496282,103550.0,103540.0,0.002]
[1747350143886,6.00196282,103550.0,103540.0,0.001]
[1747350144116,6.02096282,103550.0,103540.0,0.001]
[1747350144533,6.03596282,103550.0,103540.0,0.002]
[1747350147598,1.17629797,103550.0,103540.0,0.002]
[1747350147820,0.87895265,103550.0,103540.0,0.002]
[1747350148072,1.25591265,103550.0,103540.0,0.002]
[1747350148502,0.26099652,103550.0,103540.0,0.19516206]
[1747350148722,0.78165963,103550.0,103540.0,0.002]
[1747350149152,1.02791576,103550.0,103540.0,0.002]
[1747350151093,0.78165963,103550.0,103540.0,0.002]
[1747350152433,1.02791576,103550.0,103540.0,0.002]
[1747350154492,0.78165963,103550.0,103540.0,0.002]
[1747350154938,0.78165963,103550.0,103540.0,0.20482016]
[1747350155176,0.59133963,103550.0,103540.0,0.002]
[1747350155401,0.78261963,103550.0,103540.0,0.21447779]
[1747350155605,0.78261963,103550.0,103540.0,0.21447797]
[1747350156054,0.59133963,103550.0,103540.0,0.21447797]
[1747350156276,0.58168265,103550.0,103540.0,0.20482006]
[1747350157600,0.59133963,103550.0,103540.0,0.2241356]
[1747350157829,0.40785293,103550.0,103540.0,0.23379305]
[1747350158081,0.39370359,103550.0,103540.0,0.36320245]
[1747350158305,0.41301727,103550.0,103540.0,0.36320245]
[1747350158522,0.42267434,103550.0,103540.0,0.36320245]
[1747350159583,0.61581849,103550.0,103540.0,0.353545]
[1747350159829,0.60616188,103550.0,103540.0,0.35354519]
[1747350160039,0.60616188,103550.0,103540.0,0.33714519]
[1747350160495,0.60616188,103550.0,103540.0,0.35646046]
[1747350161142,0.59650518,103550.0,103540.0,0.34680292]
[1747350162712,0.59650518,103550.0,103540.0,0.36260292]
[1747350162955,0.39370461,103550.0,103540.0,0.37226037]
[1747350163195,0.39370368,103550.0,103540.0,0.37226037]
[1747350163413,0.39370359,103550.0,103540.0,0.37226037]
[1747350163631,0.41301736,103550.0,103540.0,0.37226037]
[1747350163852,0.40336038,103550.0,103540.0,0.37226037]
[1747350164072,0.41301736,103550.0,103540.0,0.37226037]
[1747350164940,0.40336038,103550.0,103540.0,0.37226037]
[1747350165153,0.61581793,103550.0,103540.0,0.37226037]
[1747350165603,0.61581793,103550.0,103540.0,0.37226055]
[1747350165814,0.61581793,103550.0,103540.0,0.37226009]
[1747350166244,0.5965049,103550.0,103540.0,0.33362937]
[1747350166461,0.5965049,103550.0,103540.0,0.30212937]
[1747350166732,0.5965049,103550.0,103540.0,0.31178719]
[1747350167625,0.5965049,103550.0,103540.0,0.32144492]
[1747350167834,0.24684754,103550.0,103540.0,0.37186009]
[1747350168038,0.2661615,103550.0,103540.0,0.37186009]
[1747350168252,0.2661615,103550.0,103540.0,0.36220255]
[1747350169300,0.25650499,103550.0,103540.0,0.32144492]
[1747350170455,0.25650499,103550.0,103540.0,0.0993094]
[1747350170456,0.23719113,103550.0,103540.0,0.0993094]
[1747350170616,0.26889113,103550.0,103540.0,0.30212946]
[1747350171270,0.25923396,103550.0,103540.0,0.002]
[1747350172330,0.25923396,103550.0,103540.0,0.20482016]
[1747350172331,0.22753396,103550.0,103540.0,0.20482016]
[1747350172540,0.22753396,103550.0,103540.0,0.002]
[1747350173223,0.25913396,103550.0,103540.0,0.002]
[1747350173429,0.20282016,103540.0,103530.0,0.23845662]
[1747350173640,0.20282016,103540.0,103530.0,0.33576602]
[1747350174060,0.00965791,103540.0,103530.0,0.3613244]
[1747350174273,0.19753396,103550.0,103540.0,0.20281997]
[1747350174717,0.20719066,103550.0,103540.0,0.21247797]
[1747350174934,0.20719066,103550.0,103540.0,0.19316206]
[1747350175146,0.19753396,103550.0,103540.0,0.19316206]
[1747350175371,0.00965782,103540.0,103530.0,0.36432327]
[1747350175597,0.22213552,103540.0,103530.0,0.35466639]
[1747350175870,0.03863109,103540.0,103530.0,0.36432477]
[1747350176283,0.24545162,103540.0,103530.0,0.36232495]
[1747350176517,0.24545162,103540.0,103530.0,0.35608342]
[1747350177405,0.23579389,103540.0,103530.0,0.34642495]
[1747350177621,0.49343429,103540.0,103530.0,0.001]
[1747350177849,0.68399429,103540.0,103530.0,0.001]
[1747350178067,0.68399429,103540.0,103530.0,0.002]
[1747350178505,0.68399429,103540.0,103530.0,0.20483966]
[1747350178710,0.43773816,103540.0,103530.0,0.20483966]
[1747350179986,0.42808016,103540.0,103530.0,0.20483966]
[1747350181283,0.41842206,103540.0,103530.0,0.002]
[1747350181507,0.66467819,103540.0,103530.0,0.002]
[1747350185757,1.014187,103540.0,103530.0,0.002]
[1747350185969,1.44085725,103540.0,103530.0,0.002]
[1747350186184,6.28742125,103540.0,103530.0,0.002]
[1747350186391,0.54283956,103530.0,103520.0,0.0004922]
[1747350186600,6.24940828,103530.0,103520.0,0.0004922]
[1747350187016,1.40284428,103530.0,103520.0,0.0004922]
[1747350188117,6.27640828,103530.0,103520.0,0.0004922]
[1747350188549,6.29094913,103530.0,103520.0,0.0004922]
[1747350189315,6.31694913,103530.0,103520.0,0.0014922]
[1747350189928,6.33258313,103530.0,103520.0,0.0014922]
[1747350198970,6.14218313,103530.0,103520.0,0.0014922]
[1747350199180,6.62169253,103530.0,103520.0,0.0014922]
[1747350200098,0.54285916,103520.0,103510.0,0.0156344]
[1747350200300,5.76428869,103520.0,103510.0,0.0156344]
[1747350200507,0.91772469,103520.0,103510.0,0.0156344]
[1747350201558,0.93372469,103520.0,103510.0,0.0166344]
[1747350201836,0.95172469,103520.0,103510.0,0.0166344]
[1747350202064,1.00728113,103520.0,103510.0,0.0166344]
[1747350202761,1.26807811,103520.0,103510.0,0.0166344]
[1747350203180,0.96626554,103520.0,103510.0,0.0166344]
[1747350203844,0.00966062,103510.0,103500.0,0.002]
[1747350204049,0.79887785,103470.0,103460.0,0.0306]
[1747350204255,0.21264218,103460.0,103450.0,0.23359412]
[1747350204465,0.22230737,103460.0,103450.0,0.35023587]
[1747350204678,0.45889831,103460.0,103450.0,0.0306]
[1747350205148,0.4593765,103460.0,103450.0,0.0306]
[1747350205384,0.21312037,103460.0,103450.0,0.0306]
[1747350205998,0.22838896,103460.0,103450.0,0.23659642]
[1747350206213,0.22838896,103460.0,103450.0,0.23659661]
[1747350206418,0.21872367,103460.0,103450.0,0.23659661]
[1747350206648,0.21972367,103460.0,103450.0,0.24626302]
[1747350206843,0.41340367,103460.0,103450.0,0.25592933]
[1747350208438,0.21972367,103460.0,103450.0,0.25592933]
[1747350208650,0.41352367,103460.0,103450.0,0.23659661]
[1747350209698,0.6597798,103460.0,103450.0,0.0336]
[1747350212339,0.9997798,103460.0,103450.0,0.003]
[1747350212821,1.0312798,103460.0,103450.0,0.003]
[1747350213252,0.00966669,103440.0,103430.0,0.27180191]
[1747350213485,0.3654116,103460.0,103450.0,0.23439652]
[1747350213709,0.77169407,103460.0,103450.0,0.24406302]
[1747350213918,0.76206906,103460.0,103450.0,0.0314]
[1747350214386,0.76206906,103460.0,103450.0,0.22473011]
[1747350214599,0.02574678,103460.0,103450.0,0.35103799]
[1747350214821,0.0344116,103460.0,103450.0,0.36070384]
[1747350215039,0.0424116,103460.0,103450.0,0.36070384]
[1747350215247,0.03274678,103460.0,103450.0,0.36070384]
[1747350215467,0.01574678,103460.0,103450.0,0.36070384]
[1747350215679,0.01774678,103460.0,103450.0,0.36070384]
[1747350215909,0.01674678,103460.0,103450.0,0.36070384]
[1747350216141,0.01774678,103460.0,103450.0,0.36070384]
[1747350216378,0.0467417,103460.0,103450.0,0.36070384]
[1747350216606,0.02280792,103460.0,103450.0,0.36070384]
[1747350217045,0.01314301,103460.0,103450.0,0.36070384]
[1747350217292,0.02280792,103460.0,103450.0,0.36070384]
[1747350217515,0.03247302,103460.0,103450.0,0.36070384]
[1747350217734,0.05180368,103460.0,103450.0,0.36070384]
[1747350217978,0.05180359,103460.0,103450.0,0.36070384]
[1747350218223,0.24511576,103460.0,103450.0,0.35103799]
[1747350218482,0.24511576,103460.0,103450.0,0.36070402]
[1747350218700,0.23545085,103460.0,103450.0,0.34550402]
[1747350218925,0.25029912,103460.0,103450.0,0.34550402]
[1747350219198,0.04732213,103460.0,103450.0,0.36070402]
[1747350219428,0.01832646,103460.0,103450.0,0.37036987]
[1747350219876,0.02799128,103460.0,103450.0,0.37036987]
[1747350220094,0.03765638,103460.0,103450.0,0.37036987]
[1747350220551,0.02799119,103460.0,103450.0,0.37036987]
[1747350220774,0.01832646,103460.0,103450.0,0.37036987]
[1747350220992,0.03765638,103460.0,103450.0,0.37036987]
[1747350221217,0.01832646,103460.0,103450.0,0.37036987]
[1747350221461,0.01314292,103460.0,103450.0,0.37036987]
[1747350221728,0.03247293,103460.0,103450.0,0.37036987]
[1747350222607,0.01314292,103460.0,103450.0,0.37036987]
[1747350222817,0.02280783,103460.0,103450.0,0.37036987]
[1747350223412,0.00347819,103460.0,103450.0,0.37036987]
[1747350223613,0.0131431,103460.0,103450.0,0.37036987]
[1747350224040,0.00347819,103460.0,103450.0,0.37036987]
[1747350224247,0.00347819,103460.0,103450.0,0.63116685]
[1747350228059,0.00247819,103460.0,103450.0,1.22896685]
[1747350232975,0.00247819,103460.0,103450.0,1.56896685]
[1747350233686,0.00247819,103460.0,103450.0,1.98666685]
[1747350234980,0.00247819,103460.0,103450.0,2.18006685]
[1747350236468,0.00247819,103460.0,103450.0,1.77236685]
[1747350238781,0.00247819,103460.0,103450.0,2.19006685]
[1747350240184,0.00247819,103460.0,103450.0,2.20006685]
[1747350240812,0.00247819,103460.0,103450.0,2.86376298]
[1747350241236,0.33045472,103510.0,103500.0,0.22222109]
[1747350241439,0.10830339,103510.0,103500.0,0.31953049]
[1747350241642,0.07750339,103510.0,103500.0,0.31953049]
[1747350242695,0.09250339,103510.0,103500.0,0.31953049]
[1747350242901,0.10216345,103510.0,103500.0,0.31953049]
[1747350243127,0.10648403,103510.0,103500.0,0.31953049]
[1747350243375,0.02036802,103510.0,103500.0,0.32053049]
[1747350243572,0.03936802,103510.0,103500.0,0.32153049]
[1747350243792,0.02970787,103510.0,103500.0,0.32153049]
[1747350244410,0.01070787,103510.0,103500.0,0.32053049]
[1747350244642,0.05604201,103510.0,103500.0,0.32053049]
[1747350244856,0.25999999,103510.0,103500.0,0.30220794]
[1747350245063,0.25999999,103510.0,103500.0,0.31186949]
[1747350245476,0.25999999,103510.0,103500.0,0.32153076]
[1747350245686,0.25999999,103510.0,103500.0,0.31186949]
[1747350245935,0.2599998,103510.0,103500.0,0.33119213]
[1747350246139,0.05712105,103510.0,103500.0,0.33119213]
[1747350246326,0.06678176,103510.0,103500.0,0.33119213]
[1747350247682,0.2793215,103510.0,103500.0,0.33119231]
[1747350247890,0.26000045,103510.0,103500.0,0.30220794]
[1747350248103,0.26000045,103510.0,103500.0,0.32153085]
[1747350248314,0.26000045,103510.0,103500.0,0.31186949]
[1747350248530,0.50625658,103510.0,103500.0,0.002]
[1747350248739,0.48693507,103510.0,103500.0,0.002]
[1747350248954,0.67949507,103510.0,103500.0,0.002]
[1747350250053,0.68916089,103510.0,103500.0,0.002]
[1747350250235,1.31983029,103510.0,103500.0,0.002]
[1747350251972,1.56608642,103510.0,103500.0,0.002]
[1747350253095,1.31983029,103510.0,103500.0,0.002]
[1747350253597,0.93391029,103510.0,103500.0,0.002]
[1747350254019,1.32007029,103510.0,103500.0,0.002]
[1747350255417,1.32051029,103510.0,103500.0,0.002]
[1747350256331,0.96727894,103510.0,103500.0,0.002]
[1747350256545,1.21353507,103510.0,103500.0,0.002]
[1747350258079,1.22298965,103510.0,103500.0,0.002]
[1747350258293,1.38368067,103510.0,103500.0,0.002]
[1747350258513,1.32029905,103510.0,103500.0,0.002]
[1747350258721,1.56655518,103510.0,103500.0,0.002]
[1747350258936,6.42766003,103510.0,103500.0,0.002]
[1747350259155,0.21264134,103460.0,103450.0,0.21266245]
[1747350259379,0.01933198,103450.0,103440.0,0.38744837]
[1747350259612,0.2223285,103450.0,103440.0,0.39711562]
[1747350259824,0.2223285,103450.0,103440.0,0.38744856]
[1747350260033,0.02899829,103450.0,103440.0,0.4067824]
[1747350260245,0.01933188,103450.0,103440.0,0.4067824]
[1747350260458,0.01933188,103450.0,103440.0,0.40726059]
[1747350260688,0.0289981,103450.0,103440.0,0.40726059]
[1747350260935,0.0299981,103450.0,103440.0,0.41126059]
[1747350261143,0.02033179,103450.0,103440.0,0.41126059]
[1747350261353,0.02999801,103450.0,103440.0,0.34940501]
[1747350261559,0.001,103450.0,103440.0,0.34940501]
[1747350261777,0.001,103450.0,103440.0,0.36600501]
[1747350261997,0.01066566,103450.0,103440.0,0.36600501]
[1747350262221,0.001,103450.0,103440.0,0.36600501]
[1747350262425,0.002,103450.0,103440.0,0.37573647]
[1747350263480,0.02133169,103450.0,103440.0,0.37573647]
[1747350263691,0.01166575,103450.0,103440.0,0.37573647]
[1747350263831,0.002,103450.0,103440.0,0.37573647]
[1747350265411,0.002,103450.0,103440.0,0.63653345]
[1747350265961,0.002,103450.0,103440.0,0.88278958]
[1747350266368,0.002,103450.0,103440.0,1.63278958]
[1747350266570,0.002,103450.0,103440.0,1.64278958]
[1747350268277,0.002,103450.0,103440.0,1.63278958]
[1747350268520,0.002,103450.0,103440.0,1.38653345]
[1747350268725,0.002,103450.0,103440.0,1.76605345]
[1747350269155,0.002,103450.0,103440.0,1.77605345]
[1747350269337,0.002,103450.0,103440.0,1.38653345]
[1747350269589,0.002,103450.0,103440.0,2.03226958]
[1747350269825,0.002,103450.0,103440.0,2.44996958]
[1747350270877,0.002,103450.0,103440.0,2.43996958]
[1747350271057,0.002,103450.0,103440.0,1.7796926]
[1747350271341,0.002,103450.0,103440.0,1.80423345]
[1747350271546,0.001,103450.0,103440.0,2.18999345]
[1747350271761,0.30938484,103480.0,103470.0,0.20295719]
[1747350271762,0.34018559,103480.0,103470.0,0.20295719]
[1747350271980,0.34018559,103480.0,103470.0,0.30993094]
[1747350272201,0.33052189,103480.0,103470.0,0.30993094]
[1747350272444,0.07745558,103480.0,103470.0,0.32925909]
[1747350272674,0.07745558,103480.0,103470.0,0.36175909]
[1747350273292,0.07945558,103480.0,103470.0,0.36175909]
[1747350273533,0.07945558,103480.0,103470.0,0.60801522]
[1747350273534,0.002,103480.0,103470.0,0.60801522]
[1747350273757,0.002,103480.0,103470.0,0.36275909]
[1747350274176,0.002,103480.0,103470.0,0.33025909]
[1747350274616,0.002,103480.0,103470.0,0.34665909]
[1747350275338,0.002,103480.0,103470.0,0.60791522]
[1747350276806,0.002,103480.0,103470.0,0.80219522]
[1747350277429,0.01166295,103480.0,103470.0,0.54093909]
[1747350277656,0.23392688,103480.0,103470.0,0.48588214]
[1747350277863,0.24579996,103480.0,103470.0,0.32059511]
[1747350278072,0.25546319,103480.0,103470.0,0.33025909]
[1747350278433,0.27479031,103480.0,103470.0,0.0983094]
[1747350278640,0.24580118,103480.0,103470.0,0.0983094]
[1747350279038,0.23613776,103480.0,103470.0,0.001]
[1747350279239,0.67803389,103480.0,103470.0,0.001]
[1747350280766,0.43177776,103480.0,103470.0,0.001]
[1747350282985,0.0332,103480.0,103470.0,0.19429274]
[1747350283192,0.002,103480.0,103470.0,0.32059492]
[1747350283400,0.002,103480.0,103470.0,0.35129492]
[1747350283615,0.002,103480.0,103470.0,0.59755105]
[1747350284047,0.002,103480.0,103470.0,0.35129492]
[1747350284869,0.002,103480.0,103470.0,0.59755105]
[1747350285489,0.002,103480.0,103470.0,1.19834803]
[1747350285696,0.002,103480.0,103470.0,0.9520919]
[1747350286840,0.002,103480.0,103470.0,0.9510919]
[1747350287052,0.002,103480.0,103470.0,1.19734803]
[1747350287289,0.44942305,103510.0,103500.0,0.21255991]
[1747350287484,0.26275939,103510.0,103500.0,0.22222127]
[1747350287693,0.05022039,103510.0,103500.0,0.22222127]
[1747350287922,0.09160485,103520.0,103510.0,0.2221996]
[1747350288129,0.06836397,103520.0,103510.0,0.319509]
[1747350288304,0.07802328,103520.0,103510.0,0.319509]
[1747350288519,0.07802328,103520.0,103510.0,0.31960157]